Workbook

Sheet Pasiūlymas
A2: PIRKIMO SĄLYGŲ PRIEDAS "PASIŪLYMŲ FORMA"
A4: ELEKTROS INSTALIACINĖS MEDŽIAGOS, ŠVIESTUVAI, LEMPOS
A6: Kam: | B6: VšĮ LSMU Kauno ligoninė
A8: Data: | B8: 2022-03-24
A9: Nr.:
A10: Vieta: | B10: Kaunas
A12: Tiekėjo pavadinimas / Ūkio subjektų grupės nariai: | C12: UAB Skiraida
A13: Tiekėjo kodas (-ai): | C13: 135233855
A14: Tiekėjo adresas (-ai): | C14: A.Juozapavičiaus pr. 44, Kaunas
A15: Tiekėjo PVM mokėtojo kodas(-ai): | C15: LT352338515
A16: Tiekėjo / Ūkio subjektų grupės atsakingo partnerio sąskaitos numeris, banko pavadinimas ir banko kodas (-ai): | C16: LT237044060003220860, AB SEB bankas, 70440
A17: Asmens atsakingo už pasiūlymą vardas, pavardė: | C17: Mindaugas Bumbulis
A18: Asmens atsakingo už pasiūlymą telefono numeris, el. pašto adresas: | C18: 8-600-42024, mindaugas@skiraida.lt
A19: Tiekėjo / Ūkio subjektų grupės, laimėjimo atveju, pasirašančio sutartį asmens vardas, pavardė, pareigos: | C19: Direktorius Jonas Jurevičius
A20: Tiekėjo / Ūkio subjektų grupės, laimėjimo atveju, už sutarties vykdymą atsakingo asmens vardas, pavardė, telefono numeris, elektroninio pašto adresas: | C20: 8-686-36030, jonas@skiraida.lt
A21: (1) Tiekėjo / Ūkio subjektų grupės narių, (2) ūkio subjektų, kurių pajėgumais remiamasi, ir (3) jei pašalinimo pagrindai taikomi visiems subtiekėjams - subtiekėjų, kolegialaus priežiūros organo (Stebėtojų tarybos) ir (ar) kolegialaus valdymo organo (Valdybos) narių sąrašas (jei sudaryta) ir (ar) asmuo, kuriam suteikti VPĮ 46 str. 2 d. 2 p. numatyti įgaliojimai | G21: =IF((SUMPRODUCT(--(C21=""))>0), "Privaloma užpildyti, kai taikomi pašalinimo pagrindai", "") -> Privaloma užpildyti, kai taikomi pašalinimo pagrindai
A23: Tiekėjo patvirtinimai:
A24: 1. Šiuo pasiūlymu pažymime, kad sutinkame su visomi pirkimo sąlygomis, nustatytomis:
A25: 1.1. viešojo pirkimo dokumentuose
A26: 1.2. kituose pirkimo dokumentuose (jų paaiškinimuose, papildymuose).
A27: 2. Patvirtiname, kad informacija ir duomenys, pateikti pasiūlyme, yra teisingi ir apima viską, ko reikia tinkamam sutarties įvykdymui
A28: 3. Patvirtiname, kad jei pasiūlyme nenurodyti kolegialaus priežiūros/valdymo organų nariai, šie organai juridiniuose asmenyse nėra sudaryti (taikoma, kai pirkimo dokumentuose nustatyti pašalinimo pagrindai).
A29: 4. Pasiūlymas galioja iki termino, nustatyto pirkimo dokumentuose.
A30: 5. Tais atvejais, kai pagal galiojančius teisės aktus tiekėjui nereikia mokėti PVM, jis nurodo priežastis, dėl kurių PVM nemoka:
A31: 6. Tiekėjas kainas pateikia, nurodydamas ne daugiau skaičių po kablelio, nei leidžiama pirkimo dokumentuose.
A32: 1. DALIS | B32: ELEKTROS KABELIAI, JUNGTYS, PRIEDAI
A34: Tiekėjo pasiūlymas:
A35: Nr. | B35: Pavadinimas | C35: Kiekis | D35: Mato vienetas | E35: Kaina be PVM, Eur | F35: Suma be PVM, Eur | G35: Siūlomi produktai
A36: 1. | B36: Elektros kabeliai, jungtys, priedai
A37: 1.1. | B37: PVC izol., plokščias 3x1,5 mm2 , monolitas, Cu | C37: 30000 | D37: m | E37: 0.55 | F37: =IF(ISBLANK(E37),"", PRODUCT(C37,E37)) -> 16500 | G37: YDYp 3x1,5
A38: 1.2. | B38: PVC izol. , plokščias 3x2,5 mm2, monolitas, Cu | C38: 20000 | D38: m | E38: 0.86 | F38: 17200 | G38: YDYp 3x2,5
A39: 1.3. | B39: PVC izol.,plokščias 3x4 mm2, monolitas | C39: 700 | D39: m | E39: 1.48 | F39: 1036 | G39: YDYp 3x4
A40: 1.4. | B40: PVC izol., V plokščias 5x2,5 mm2, monolitas, Cu | C40: 800 | D40: m | E40: 0.96 | F40: 768 | G40: YDYp 5x2,5
A41: 1.5. | B41: PVC izol., plokščias 5x4 mm2, monolitas, Cu | C41: 800 | D41: m | E41: 1.07 | F41: 856 | G41: YDYp 5x4
A42: 1.6. | B42: PVC izol., plokščias 5x6 mm2, monolitas, Cu | C42: 600 | D42: m | E42: 1.42 | F42: 852 | G42: YDYp 5x6
A43: 1.7. | B43: PVC izol., 5x10 mm2, monolitas, Cu | C43: 800 | D43: m | E43: 5.64 | F43: 4512 | G43: CYKY 5x10
A44: 1.8. | B44: PVC izol. gyslos daugiavielės, Cu 3x1,5 mm2, lankstus | C44: 800 | D44: m | E44: 0.67 | F44: 536 | G44: H03VV-F 3x1,5
A45: 1.9. | B45: PVC izol. gyslos daugiavielės, Cu 3x2,5 mm2, lankstus | C45: 800 | D45: m | E45: 1.08 | F45: 864 | G45: H03VV-F 3x2,5
A46: 1.10. | B46: PVC izol., plokščias 3x1,0 mm2 monolitas, Cu | C46: 400 | D46: m | E46: 0.39 | F46: 156 | G46: YDYp 3x1
A47: 1.11. | B47: Daugiavielis laidas lankstus geltonai žalias 1x6 mm2 | C47: 300 | D47: m | E47: 0.68 | F47: 204 | G47: H07V-K 1x6
A48: 1.12. | B48: PVC izol., 5x4 mm2, monolitas, Cu | C48: 600 | D48: m | E48: 2.36 | F48: 1416 | G48: CYKY 5x4
A49: 1.13. | B49: PVC izol., 5x6 mm2, monolitas, Cu | C49: 600 | D49: m | E49: 3.36 | F49: 2016 | G49: CYKY 5x6
A50: 1.14. | B50: PVC izol., 5x10 mm2, monolitas, Cu | C50: 600 | D50: m | E50: 5.64 | F50: 3384 | G50: CYKY 5x10
A51: 1.15. | B51: Izoliacinė juosta vini-tape | C51: 400 | D51: vnt | E51: 0.94 | F51: 376 | G51: Vini-Tape PVC 19mmx0,11mmx20m
A52: 1.16. | B52: Užveržimo dirželiai nailoniniai 2,5[+-1]x100[+-10] mm | C52: 10000 | D52: vnt | E52: 0.01 | F52: 100 | G52: Dirželis 100x2,5
A53: 1.17. | B53: Užveržimo dirželiai nailoniniai 4,8[+-2]x180[+-25] mm | C53: 60000 | D53: vnt | E53: 0.03 | F53: 1800 | G53: Dirželis 203x4,6
A54: 1.18. | B54: Užveržimo dirželiai nailoniniai 4,8[+-2]x300[+-20] mm | C54: 10000 | D54: vnt | E54: 0.04 | F54: 400 | G54: Dirželis 302x4,8
A55: 1.19. | B55: Užveržimo dirželiai nailoniniai 4,8[+-2]x380[+-20] mm | C55: 10000 | D55: vnt | E55: 0.05 | F55: 500 | G55: Dirželis 368x4,8
A56: 1.20. | B56: Dirželio laikiklis prisukamas 7,8(+-3) mm | C56: 10000 | D56: vnt | E56: 0.05 | F56: 500 | G56: Laikiklis 7,8mm
A57: 1.21. | B57: Kabelio laikiklis 3-5 2*15 baltas | C57: 5000 | D57: vnt | E57: 0.02 | F57: 100 | G57: Laikiklis 3-5
A58: 1.22. | B58: Kabelio laikiklis 5x8 2*25 baltas | C58: 5000 | D58: vnt | E58: 0.02 | F58: 100 | G58: Laikiklis 5x8
A59: 1.23. | B59: Kabelio laikiklis 6x10 2*25 baltas | C59: 3000 | D59: vnt | E59: 0.02 | F59: 60 | G59: Laikiklis 6x10
A60: 1.24. | B60: Instaliacinis lovelis 15(+-2)x10(+-2) , ilgis 2000(+-200)mm | C60: 400 | D60: vnt | E60: 0.36 | F60: 144 | G60: Lovelis 15x10
A61: 1.25. | B61: Instaliacinis lovelis 15(+-2)x15(+-2) , ilgis 2000(+-200)mm | C61: 400 | D61: vnt | E61: 0.39 | F61: 156 | G61: Lovelis 15x15
A62: 1.26. | B62: Instaliacinis lovelis 20(+-2)x10(+-2) , ilgis 2000(+-200)mm | C62: 400 | D62: vnt | E62: 0.59 | F62: 236 | G62: Lovelis 20x10
A63: 1.27. | B63: Instaliacinis lovelis 25(+-2)x20(+-2) , ilgis 2000(+-200)mm | C63: 400 | D63: vnt | E63: 0.79 | F63: 316 | G63: Lovelis 25x20
A64: 1.28. | B64: Instaliacinis lovelis 40(+-2)x20(+-2) , ilgis 2000(+-200)mm | C64: 200 | D64: vnt | E64: 1.33 | F64: 266 | G64: Lovelis 40x20
A65: 1.29. | B65: Instaliacinis lovelis 40(+-2)x40(+-2) , ilgis 2000(+-200)mm | C65: 200 | D65: vnt | E65: 1.37 | F65: 274 | G65: Lovelis 40x40
A66: 1.30. | B66: Kanalas grindinis 50(+-10)x10(+-2)mm , ilgis 2000(+-200)mm | C66: 200 | D66: vnt | E66: 1.81 | F66: 362 | G66: Lovelis 50x10, grindinis
A67: 1.31. | B67: Kanalas su dangčiu 50x100mm DLP-S , | C67: 150 | D67: m | E67: 5.86 | F67: 879 | G67: Lovelis DLP-S 50x100
A68: 1.32. | B68: Dangtelis galinis 50x100mm DLP-S | C68: 300 | D68: vnt | E68: 1.11 | F68: 333 | G68: 50x100 galinis dangtelis
A69: 1.33. | B69: Kištukinis lizdas 1 vietos | C69: 150 | D69: vnt | E69: 1.86 | F69: =IF(ISBLANK(E69),"", PRODUCT(C69,E69)) -> 279 | G69: Lizdas 1 vietos
A70: 1.34. | B70: Kištukinis lizdas 3 vietų | C70: 100 | D70: vnt | E70: 8.65 | F70: 865 | G70: Lizdas 23 vietų
A71: 1.35. | B71: Kabeliniai cinkuoto metalo loveliai 50[+-5]x100[+-20] mm, ilgis 2000(+-200)mm | C71: 100 | D71: vnt | E71: 3.38 | F71: 338 | G71: Lovelis KGR100H45/2
A72: 1.36. | B72: Gofruotas vamzdis 12(+-2)/9 (+-2) | C72: 300 | D72: m | E72: 0.12 | F72: 36 | G72: Gofruotas vamzdis 12/9
A73: 1.37. | B73: Gofruotas vamzdis 16(+-2) 320N su viela | C73: 300 | D73: m | E73: 0.26 | F73: 78 | G73: Gofruotas vamzdis 16
A74: 1.38. | B74: Gofruotas vamzdis 20(+-2) 320N su viela | C74: 300 | D74: m | E74: 0.32 | F74: 96 | G74: Gofruotas vamzdis 20
A75: 1.39. | B75: Gofruotas vamzdis 25(+-2) 320N su viela | C75: 300 | D75: m | E75: 0.38 | F75: 114 | G75: Gofruotas vamzdis 25
A76: 1.40. | B76: Gofruotas vamzdis 32(+-2) 320N su viela | C76: 300 | D76: m | E76: 0.52 | F76: 156 | G76: Gofruotas vamzdis 32
A77: 1.41. | B77: Kabelinio cinkuoto metalo lovelių tvirtinimo kampas L 200[+-5] mm | C77: 300 | D77: vnt | E77: 1.44 | F77: 432 | G77: Lentyna WW200
A78: 1.42. | B78: Laidas telefoninis TKPV 1x2x0,5 | C78: 600 | D78: m | E78: 0.19 | F78: 114 | G78: Laidas TKPV 1x2x0,5
A79: 1.43. | B79: Laidas telefoninis TKPV 1x4x0,5 | C79: 1000 | D79: m | E79: 0.26 | F79: 260 | G79: Laidas TKPV 1x4x0,5
A80: 1.44. | B80: Koksalinis kabelis 75 Ω | C80: 600 | D80: m | E80: 0.19 | F80: 114 | G80: Kabelis RG6U
A81: 1.45. | B81: Kabelis UTP, 5 kategorija | C81: 50000 | D81: m | E81: 0.29 | F81: 14500 | G81: Kabelis UTP CAT5
A82: 1.46. | B82: Laidų jungtis 5x0,2-4mm² 32A/450V Wago atlenkiama | C82: 600 | D82: vnt | E82: 0.49 | F82: 294 | G82: Jungtis 5x0,2-4mm Wago
A83: 1.47. | B83: Laidų jungtis 2x0,2-4mm² 32A/450V Wago atlenkiama | C83: 1000 | D83: vnt | E83: 0.25 | F83: 250 | G83: Jungtis 2x0,2-4mm Wago
A84: 1.48. | B84: Laidų jungtis 3x0,2-4mm² 32A/450V atlenkiama | C84: 1000 | D84: vnt | E84: 0.32 | F84: 320 | G84: Jungtis 3x0,2-4mm Wago
A85: 1.49. | B85: Gnybtas 12(+-2)x10mm² | C85: 100 | D85: vnt | E85: 0.75 | F85: 75 | G85: Gnybtas 12x10mm²
A86: 1.50. | B86: Gnybtas 12(+-2)x16mm² | C86: 100 | D86: vnt | E86: 1.05 | F86: 105 | G86: Gnybtas 12x16mm²
A87: 1.51. | B87: Gnybtas 12(+-2)x2,5-4mm² | C87: 100 | D87: vnt | E87: 0.45 | F87: 45 | G87: Gnybtas 12x2,5-4mm²
A88: 1.52. | B88: Gnybtas 12(+-2)x6mm² | C88: 100 | D88: vnt | E88: 0.5 | F88: 50 | G88: Gnybtas 12x6mm²
A89: 1.53. | B89: Gnybtas 12(+-2)x25mm² | C89: 50 | D89: vnt | E89: 3.5 | F89: 175 | G89: Gnybtas 12x25mm²
A90: 1.54. | B90: Gnybtas KE16-1 1,5-16mm² Al/Cu gelt./žalias | C90: 200 | D90: vnt | E90: 1.52 | F90: 304 | G90: KE16-1 1,5-16 gelt-žalias
A91: 1.55. | B91: Gnybtas KE16-1 1,5-16mm² Al/Cu mėlynas | C91: 200 | D91: vnt | E91: 1.52 | F91: 304 | G91: KE16-1 1,5-16 mėlynas
A92: 1.56. | B92: Gnybtas KE50-1 2,5-50mm² Al/Cu gelt./žalias | C92: 100 | D92: vnt | E92: 1.81 | F92: 181 | G92: KE50-1 2,5-50 gelt-žalias
A93: 1.57. | B93: Gnybtas KE50-1 2,5-50mm² Al/Cu mėlynas | C93: 100 | D93: vnt | E93: 1.81 | F93: 181 | G93: KE50-1 2,5-50 mėlynas
A94: 1.58. | B94: Gnybtas KE50-1 2,5-50mm² Al/Cu pilkas | C94: 100 | D94: vnt | E94: 1.81 | F94: 181 | G94: KE50-1 2,5-50 pilkas
A95: 1.59. | B95: Gnybtas KE16-1 1,5-16mm² Al/Cu pilkas | C95: 200 | D95: vnt | E95: 1.52 | F95: 304 | G95: KE16-1 1,5-16 pilkas
A96: 1.60. | B96: VARINIS JĖGOS KABELIS SU PVC IZOLIACIJA CYKY 5X16 | C96: 200 | D96: m | E96: 6.72 | F96: 1344 | G96: Kabelis CYKY 5x16
E97: Suma be PVM | F97: =IF((SUMPRODUCT(--(F37:F96=""))>0), "", SUM(F37:F96)) -> 78697 | G97: =IF((SUMPRODUCT(--(F37:F96=""))>0), "Neužpildytos visų objektų kainos", "") -> 
E98: PVM suma | F98: =(F97*1.21)-F97 -> 16526.37
E99: Suma su PVM | F99: =IF(ISBLANK(F98), "", SUM(F97:F98)) -> 95223.37
A103: 2. DALIS | B103: ELEKTROS INSTALIACINĖS MEDŽIAGOS, JUNGIKLIAI, ROZETĖS
A105: Tiekėjo pasiūlymas:
A106: Nr. | B106: Pavadinimas | C106: Kiekis | D106: Mato vienetas | E106: Kaina be PVM, Eur | F106: Suma be PVM, Eur | G106: Siūlomi produktai
A107: 2. | B107: Elektros instaliacinės medžiagos, jungikliai, rozetės
A108: 2.1. | B108: Vienfazis, I atj. 6 kA, In 6 A, „C“ | C108: 60 | D108: vnt | E108: 1.39 | F108: =IF(ISBLANK(E108),"", PRODUCT(C108,E108)) -> 83.4 | G108: FB1-63 1P C 6A 6kA
A109: 2.2. | B109: Vienfazis, I atj. 6kA, In 10 A, „C“ | C109: 150 | D109: vnt | E109: 1.39 | F109: 208.5 | G109: FB1-63 1P C 10A 6kA
A110: 2.3. | B110: Vienfazis, I atj. 6 kA, In 16 A, „C" | C110: 200 | D110: vnt | E110: 1.39 | F110: 278 | G110: FB1-63 1P C 16A 6kA
A111: 2.4. | B111: Vienfazis, I atj. 6 kA, In 20 A, „C“ | C111: 150 | D111: vnt | E111: 1.39 | F111: 208.5 | G111: FB1-63 1P C 20A 6kA
A112: 2.5. | B112: Trifazis, I atj. 6 kA, In 6 A, „C“ | C112: 40 | D112: vnt | E112: 3.94 | F112: 157.6 | G112: FB1-63 3P C 6A 6kA
A113: 2.6. | B113: Trifazis, I atj. 6 kA, In 10 A, „C“ | C113: 60 | D113: vnt | E113: 3.94 | F113: 236.4 | G113: FB1-63 3P C 10A 6kA
A114: 2.7. | B114: Trifazis, I atj. 6 kA, In 16 A, „C“ | C114: 100 | D114: vnt | E114: 3.94 | F114: 394 | G114: FB1-63 3P C 16A 6kA
A115: 2.8. | B115: Trifazis, I atj. 6 kA, In 20 A, „C“ | C115: 100 | D115: vnt | E115: 3.94 | F115: 394 | G115: FB1-63 3P C 20A 6kA
A116: 2.9. | B116: Trifazis, I atj. 6 kA, In 32 A, „C“ | C116: 60 | D116: vnt | E116: 4.65 | F116: 279 | G116: FB1-63 3P C 32A 6kA
A117: 2.10. | B117: Trifazis, I atj. 6 kA, In 40 A, „C“ | C117: 50 | D117: vnt | E117: 4.65 | F117: 232.5 | G117: FB1-63 3P C 40A 6kA
A118: 2.11. | B118: Trifazis, I atj. 6 kA, In 63 A , „C“ | C118: 40 | D118: vnt | E118: 4.65 | F118: 186 | G118: FB1-63 3P C 63A 6kA
A119: 2.12. | B119: Apsauginis išjungėjas .Vienfazė, 2P, IN 10 A, 30 mA | C119: 30 | D119: vnt | E119: 8.74 | F119: 262.2 | G119: FPR1 2P 10A 30mA
A120: 2.13. | B120: Apsauginis išjungėjas. Vienfazė, 2P, IN 16 A, 30 mA | C120: 30 | D120: vnt | E120: 9.72 | F120: 291.6 | G120: FPR1 2P 16A 30mA
A121: 2.14. | B121: Apsauginis išjungėjas. Vienfazė, 2P, IN 20 A, 30 mA | C121: 30 | D121: vnt | E121: 8.74 | F121: 262.2 | G121: FPR1 2P 20A 30mA
A122: 2.15. | B122: Apsauginis išjungėjas. Vienfazė, 2P, IN 25 A, 30 mA | C122: 30 | D122: vnt | E122: 9.72 | F122: 291.6 | G122: FPR1 2P 25A 30mA
A123: 2.16. | B123: Apsauginis išjungėjas. Vienfazė, 2P, IN 40 A, 30 mA | C123: 10 | D123: vnt | E123: 9.72 | F123: 97.2 | G123: FPR1 2P 40A 30mA
A124: 2.17. | B124: Apsauginis išjungėjas. Trifazis, 4P, IN 10 A, 30 mA | C124: 20 | D124: vnt | E124: 14.12 | F124: 282.4 | G124: FPR1 4P 10A 30mA
A125: 2.18. | B125: Apsauginis išjungėjas. Trifazis, 4P, IN 16 A, 30 mA | C125: 40 | D125: vnt | E125: 14.12 | F125: 564.8 | G125: FPR1 4P 16A 30mA
A126: 2.19. | B126: Apsauginis išjungėjas. Trifazis, 4P, IN 20 A, 30 mA | C126: 40 | D126: vnt | E126: 15.23 | F126: 609.2 | G126: FPR1 4P 20A 30mA
A127: 2.20. | B127: Apsauginis išjungėjas. Trifazis, 4P, IN 32 A, 30 mA | C127: 40 | D127: vnt | E127: 14.12 | F127: 564.8 | G127: FPR1 4P 32A 30mA
A128: 2.21. | B128: Apsauginis išjungėjas. Trifazis, 4P, IN 40 A, 30 mA | C128: 30 | D128: vnt | E128: 15.23 | F128: 456.9 | G128: FPR1 4P 40A 30mA
A129: 2.22. | B129: Variklių paleidimo kontaktoriai su šilumine rele. Varikliui iki 1 kW | C129: 10 | D129: vnt | E129: 21.62 | F129: 216.2 | G129: MKS1TM-2,5 (1,6-2,5A)
A130: 2.23. | B130: Variklių paleidimo kontaktoriai su šilumine rele. Varikliui 1-2 kW | C130: 10 | D130: vnt | E130: 21.62 | F130: 216.2 | G130: MKS1TM-4 (2,5-4A)
A131: 2.24. | B131: Variklių paleidimo kontaktoriai su šilumine rele. Varikliui iki 2-3 kW | C131: 10 | D131: vnt | E131: 21.62 | F131: 216.2 | G131: MKS1TM-6,3 (4-6,3A)
A132: 2.25. | B132: Variklių paleidimo kontaktoriai su šilumine rele. Varikliui iki 3-4 kW | C132: 10 | D132: vnt | E132: 21.61 | F132: 216.1 | G132: MKS1TM-10 (6,3-10A)
A133: 2.26. | B133: Foto daviklis, valdymo galia iki 1,5 kW | C133: 20 | D133: vnt | E133: 19.22 | F133: 384.4 | G133: Night-Matic 2000 Steinel
A134: 2.27. | B134: Judesio daviklis valdymo galia iki 1,5 kW | C134: 40 | D134: vnt | E134: 4.78 | F134: 191.2 | G134: Daviklis CR-CR1000-00 GTV
A135: 2.28. | B135: Saugikliai PR 63 | C135: 40 | D135: vnt | E135: 2.11 | F135: 84.4 | G135: Saugiklis PR 63 Ø21x76mm
A136: 2.29. | B136: Saugiklis automatinis 16A, E27 | C136: 40 | D136: vnt | E136: 2.65 | F136: 106 | G136: Saugiklis PAR 16A E27
A137: 2.30. | B137: Saugikliai PN-2 arba analogas, įvairaus amperažo. Korpusas 100 A. | C137: 40 | D137: vnt | E137: 2.06 | F137: 82.4 | G137: Saugiklis PN-2 100A
A138: 2.31. | B138: Šyna 1P/12mod. KDN tipo 10mm² | C138: 30 | D138: vnt | E138: 2.48 | F138: 74.4 | G138: KDN163A 10mm² hager
A139: 2.32. | B139: Šyna 1P/57(+-3)mod. KDN tipo 16mm² | C139: 20 | D139: vnt | E139: 13.02 | F139: 260.4 | G139: KDN180B 16mm² hager
A140: 2.33. | B140: Šyna 3P/12mod. KDN tipo 16mm² | C140: 20 | D140: vnt | E140: 4.96 | F140: =IF(ISBLANK(E140),"", PRODUCT(C140,E140)) -> 99.2 | G140: KDN380A 16mm² hager
A141: 2.34. | B141: Šyna 3P/57mod. KDN tipo 16mm² | C141: 20 | D141: vnt | E141: 16.53 | F141: 330.6 | G141: KDN380B 16mm² hager
A142: 2.35. | B142: Elektros instaliacijos moduliniai skydeliai. Potinkinis 8 modulių | C142: 20 | D142: vnt | E142: 7.13 | F142: 142.6 | G142: ECM8PT 8mod. p/t
A143: 2.36. | B143: Elektros instaliacijos moduliniai skydeliai. Potinkinis 12 modulių | C143: 200 | D143: vnt | E143: 8.94 | F143: 1788 | G143: ECM12PT 12mod. p/t
A144: 2.37. | B144: Elektros instaliacijos moduliniai skydeliai. Potinkinis 18 modulių | C144: 20 | D144: vnt | E144: 11.15 | F144: 223 | G144: ECM18PT 18mod. p/t
A145: 2.38. | B145: Elektros instaliacijos moduliniai skydeliai. Potinkinis 24 modulių | C145: 20 | D145: vnt | E145: 12.24 | F145: 244.8 | G145: ECM24PT 24mod. p/t
A146: 2.39. | B146: Elektros instaliacijos moduliniai skydeliai. Potinkinis 36 modulių | C146: 20 | D146: vnt | E146: 16.23 | F146: 324.6 | G146: ECM36PT 36mod. p/t
A147: 2.40. | B147: Elektros instaliacijos moduliniai skydeliai. Virštinkinis 8 modulių | C147: 20 | D147: vnt | E147: 6.29 | F147: 125.8 | G147: ECT8PO 8mod. v/t
A148: 2.41. | B148: Elektros instaliacijos moduliniai skydeliai. Virštinkinis 12 modulių | C148: 20 | D148: vnt | E148: 8.58 | F148: 171.6 | G148: ECT12PO 12mod. v/t
A149: 2.42. | B149: Elektros instaliacijos moduliniai skydeliai. Virštinkinis 18 modulių | C149: 20 | D149: vnt | E149: 9.98 | F149: 199.6 | G149: ECT18PO 18mod. v/t
A150: 2.43. | B150: Elektros instaliacijos moduliniai skydeliai. Virštinkinis 24 modulių | C150: 20 | D150: vnt | E150: 11.95 | F150: 239 | G150: ECT24PO 24mod. v/t
A151: 2.44. | B151: Elektros instaliacijos moduliniai skydeliai. Virštinkinis 36 modulių | C151: 20 | D151: vnt | E151: 15.31 | F151: 306.2 | G151: ECT36PO 36mod. v/t
A152: 2.45. | B152: Elektros instaliacijos moduliniai skydeliai. Virštinkinis 4 modulių | C152: 40 | D152: vnt | E152: 1.39 | F152: 55.6 | G152: Skydelis S4/4mod. p/t IP40
A153: 2.46. | B153: Elektros instaliacijos moduliniai skydeliai. Potinkinis 4 modulių | C153: 30 | D153: vnt | E153: 3.29 | F153: 98.7 | G153: Skydelis 4mod v/t IP40
A154: 2.47. | B154: Kontaktorius 230V 15kw | C154: 20 | D154: vnt | E154: 9.87 | F154: 197.4 | G154: NC1-32A 15kW 230V
A155: 2.48. | B155: Kontaktorius 230V 30kw | C155: 20 | D155: vnt | E155: 27.13 | F155: 542.6 | G155: NC1-65A 30kW 230V
A156: 2.49. | B156: METALINĖ MONTAŽINĖ DĖŽĖ IP 65(+-5) | C156: 40 | D156: vnt | E156: 25.56 | F156: 1022.4 | G156: Dėžė 300x300x200 IP65
A157: 2.50. | B157: Jungiklis paketinis 25A dvipolis , LK25R/1.828 (0-1) tipo | C157: 30 | D157: vnt | E157: 10.79 | F157: 323.7 | G157: Jungiklis CS 25A 2P 0-1
A158: 2.51. | B158: Jungiklis paketinis 25A tripolis 2-ų eilių, LK25R/1.834 (1-0-2) tipo | C158: 30 | D158: vnt | E158: 17.38 | F158: 521.4 | G158: Jungiklis CS 25A 3P 1-0-2
A159: 2.52. | B159: LED indikacinė lemputė balta | C159: 50 | D159: vnt | E159: 1.31 | F159: 65.5 | G159: LED FP 230V AC/DC balta
A160: 2.53. | B160: LED indikacinė lemputė geltona | C160: 50 | D160: vnt | E160: 1.32 | F160: 66 | G160: LED FP 230V AC/DC geltona
E161: Suma be PVM | F161: =IF((SUMPRODUCT(--(F108:F160=""))>0), "", SUM(F108:F160)) -> 15477 | G161: =IF((SUMPRODUCT(--(F108:F160=""))>0), "Neužpildytos visų objektų kainos", "") -> 
E162: PVM suma | F162: =(F161*1.21)-F161 -> 3250.17
E163: Suma su PVM | F163: =IF(ISBLANK(F162), "", SUM(F161:F162)) -> 18727.17
A167: 3. DALIS | B167: ŠVIESTUVAI, LEMPOS
A169: Tiekėjo pasiūlymas:
A170: Nr. | B170: Pavadinimas | C170: Kiekis | D170: Mato vienetas | E170: Kaina be PVM, Eur | F170: Suma be PVM, Eur | G170: Siūlomi produktai
A171: 3. | B171: Šviestuvai, lempos
A172: 3.1. | B172: Šviestuvas LED, 4(+-2)W, IP44, paviršinis, evakuacinis, 3h, prie lubų, su lipduku | C172: 40 | D172: vnt | E172: 18.5 | F172: =IF(ISBLANK(E172),"", PRODUCT(C172,E172)) -> 740 | G172: ORION LED 100 3h
A173: 3.2. | B173: Stalinis šviestuvas, LED, aukštis iki 400(+-50) mm, reguliuojamas, pastatomas, padas 130 ± 20 mm | C173: 200 | D173: vnt | E173: 17.46 | F173: 3492 | G173: LED ISTI 10W Kanlux
A174: 3.3. | B174: Šviestuvas LED į „Amstrong“ tipo lubas 600x600x50 IP20 baltas 4000K,4000(+-400) lm, ≥ A+ | C174: 1000 | D174: vnt | E174: 17.94 | F174: 17940 | G174: 45W 4000K 600x600 įmontuojama
A175: 3.4. | B175: LED panelės rėmas, išoriniam montavimui 600x600 mm | C175: 300 | D175: vnt | E175: 11.34 | F175: 3402 | G175: rėmas 600x600, išoriniam montavimui
A176: 3.5. | B176: Šviestuvas LED 20(+-3)W 60cm 4000K 2400(+-400)lm IP20 | C176: 100 | D176: vnt | E176: 8.12 | F176: 812 | G176: LED 20W 60cm 4000K 2400lm IP20
A177: 3.6. | B177: Šviestuvas LED 40(+-5)W 120cm 4000K 4800(+-400)lm IP20 | C177: 100 | D177: vnt | E177: 10.87 | F177: 1087 | G177: LED 40W 120cm 4000K 4800lm IP20
A178: 3.7. | B178: Šviestuvas LED 30(+-5)W 60 cm 4000K 3000(+-600)lm IP65 | C178: 100 | D178: vnt | E178: 12.11 | F178: 1211 | G178: LED 30W LD-OMN060-30B 3000lm IP65
A179: 3.8. | B179: Šviestuvas LED 60(+-10)W 120cm 4000K 6000(+-1000)lm IP65 | C179: 100 | D179: vnt | E179: 19.47 | F179: 1947 | G179: LED 60W LD-OMN120-60B 6000lm IP65
A180: 3.9. | B180: LED šviestuvas su 1arba 2 rozetėmis, difuzorius matinis ,12(+-2) W, ≥900 Lm, A+, švietimas 45o kampu , ne mažiau IP44 | C180: 300 | D180: vnt | E180: 29.62 | F180: 8886 | G180: LED su el.lizdu 14W 4000K 1200lm IP44
A181: 3.10. | B181: LED prožektorius 50(+-5)W 4000K 4000(+-400)lm IP65 | C181: 50 | D181: vnt | E181: 11.58 | F181: 579 | G181: 50W 4000K 4000lm IP65
A182: 3.11. | B182: LED prožektorius 100(+-20)W 4000K 8000(+-1000)lm IP65 | C182: 40 | D182: vnt | E182: 24.36 | F182: 974.4 | G182: 100W 4000K 8000lm IP65
A183: 3.12. | B183: LED prožektorius, IP65, 50 W, aliuminio korpuse, su judesio davikliu | C183: 40 | D183: vnt | E183: 20.22 | F183: 808.8 | G183: 50W su judesio davikliu IP65
A184: 3.13. | B184: LED šviestuvas apvalus, Ø285 mm, ≥1700 Lm, ≥A+, tvirtinamas į „ Amstrong“ tipo lubas, IP4(+-4) | C184: 200 | D184: vnt | E184: 16.36 | F184: 3272 | G184: 24W apvali, įmontuojama 4000K 2000lm
A185: 3.14. | B185: LED šviestuvas apvalus, Ø240mm, ≥1200 Lm, ≥A+, tvirtinamas į „ Amstrong“ tipo lubas,IP44(+-4) | C185: 200 | D185: vnt | E185: 16.44 | F185: 3288 | G185: 29W apvali, įmontuojama 4000K 2900lm
A186: 3.15. | B186: LED šviestuvas apvalus, Ø170mm, ≥1000 Lm, ≥A+, tvirtinamas į „ Amstrong“ tipo lubas,IP44(+-4) | C186: 200 | D186: vnt | E186: 13.61 | F186: 2722 | G186: 18W apvali, įmontuojama 4000K 1350lm
A187: 3.16. | B187: Kompaktinė lium. lempa 230V G24q3 4P 18W 4000K | C187: 300 | D187: vnt | E187: 1.98 | F187: 594 | G187: 18W/840/4P G24q-2 Philips
A188: 3.17. | B188: Kompaktinė lium. lempa G24d3 2P 18W 4000K | C188: 300 | D188: vnt | E188: 1.98 | F188: 594 | G188: 18W/840/2P G24d-2 Philips
A189: 3.18. | B189: Kompaktinė lium. lempa 230V G24q3 4P 26W 4000K | C189: 300 | D189: vnt | E189: 2.23 | F189: 669 | G189: 26W/840/4P G24Q-3 Philips
A190: 3.19. | B190: Kompaktinė lium. lempa G24d3 2P 26W 4000K | C190: 300 | D190: vnt | E190: 2.23 | F190: 669 | G190: 26W/840/2P G24d-3 Philips
A191: 3.20. | B191: Liuminiscencinė lempa T8 15W, L-45 cm | C191: 200 | D191: vnt | E191: 2.81 | F191: 562 | G191: TLD 15W/840 Philips
A192: 3.21. | B192: Starteriai 4-65 W, 220/240 V | C192: 1000 | D192: vnt | E192: 0.29 | F192: 290 | G192: S10 4-65W Philips
A193: 3.22. | B193: Starteriai 4-22 W, 220/240 V | C193: 1000 | D193: vnt | E193: 0.29 | F193: 290 | G193: S2 4-22W Philips
E194: Suma be PVM | F194: =IF((SUMPRODUCT(--(F172:F193=""))>0), "", SUM(F172:F193)) -> 54829.2 | G194: =IF((SUMPRODUCT(--(F172:F193=""))>0), "Neužpildytos visų objektų kainos", "") -> 
E195: PVM suma | F195: =(F194*1.21)-F194 -> 11514.132
E196: Suma su PVM | F196: =IF(ISBLANK(F195), "", SUM(F194:F195)) -> 66343.332
A200: 4. DALIS | B200: ELEKTROS JUNGIKLIAI, ROZETĖS, INSTALIAVIMO DĖŽUTĖS
A202: Tiekėjo pasiūlymas:
A203: Nr. | B203: Pavadinimas | C203: Kiekis | D203: Mato vienetas | E203: Kaina be PVM, Eur | F203: Suma be PVM, Eur | G203: Siūlomi produktai
A204: 4. | B204: Elektros jungikliai, rozetės, instaliavimo dėžutės
A205: 4.1. | B205: Dėžutė į gipso plokštę 1 vietos | C205: 400 | D205: vnt | E205: 0.45 | F205: =IF(ISBLANK(E205),"", PRODUCT(C205,E205)) -> 180 | G205: 1 vietos ĮID-66-005
A206: 4.2. | B206: Blokas iš 2 jų paskirstymo dėžučių į gipsą | C206: 200 | D206: vnt | E206: 0.84 | F206: 168 | G206: 2 vietų ĮID2-66-003
A207: 4.3. | B207: Blokas iš 3 jų paskirstymo dėžučių į gipsą | C207: 200 | D207: vnt | E207: 1.19 | F207: 238 | G207: 3 vietų ĮID3-66-003
A208: 4.4. | B208: Paskirstymo dėžutė į gipsą pagilinta ≥Ǿ70 mm | C208: 400 | D208: vnt | E208: 0.54 | F208: 216 | G208: ĮID-66-004 pagilinta
A209: 4.5. | B209: Dangtelis potinkinei dėžutei | C209: 600 | D209: vnt | E209: 0.11 | F209: 66 | G209: Dangtelis spyruoklinis
A210: 4.6. | B210: Potinkinė paskirstymo dėžutė gili ≥Ǿ73 mm, su varžtais jungiklio pritvirtinimui, sujungiama | C210: 400 | D210: vnt | E210: 0.14 | F210: 56 | G210: PK60F p/t gili su varžt. sujungiama
A211: 4.7. | B211: Potinkinė paskirstymo dėžutė , su varžtais jungiklio pritvirtinimui, sujungiama | C211: 1000 | D211: vnt | E211: 0.13 | F211: 130 | G211: PK60F p/t su varžt. sujungiama
A212: 4.8. | B212: Virštinkinė paskirstymo dėžutė (85x85x37)±10% IP54 | C212: 400 | D212: vnt | E212: 0.72 | F212: 288 | G212: 332-912 85x85x37 IP55
A213: 4.9. | B213: Virštinkinė paskirstymo dėžutė (100x100x50)±10% IP54 | C213: 400 | D213: vnt | E213: 1.27 | F213: 508 | G213: 100x100x50 IP56
A214: 4.10. | B214: Rozetė 1F potinkinė su įžeminimo laidu, 10A, 250V~, be rėmelio | C214: 1400 | D214: vnt | E214: 1.29 | F214: 1806 | G214: RP16-002-02D ST-150 baltas
A215: 4.11. | B215: Rozetė 1F potinkinė su įžeminimo laidu, 10A, 250V~ , dviguba, su rėmėliu | C215: 400 | D215: vnt | E215: 2.41 | F215: 964 | G215: RP16-021 ST150 baltas
A216: 4.12. | B216: Jungiklis potinkinis vienpolis 10A, 250V~, IP20, be rėmelio | C216: 800 | D216: vnt | E216: 1.52 | F216: 1216 | G216: P110-010-02D ST-150 baltas
A217: 4.13. | B217: Jungiklis potinkinis dvipolis 10A, 250V~, IP20, be rėmėlio | C217: 400 | D217: vnt | E217: 1.82 | F217: 728 | G217: P510-020-02D ST-150 baltas
A218: 4.14. | B218: Jungikliai potinkinis kryžminis, be rėmėlio | C218: 40 | D218: vnt | E218: 2.46 | F218: 98.4 | G218: P710-010-02 ST-150 baltas
A219: 4.15. | B219: Potinkinis lizdas su PC 1 pajungimu RJ-45, be rėmėlio | C219: 200 | D219: vnt | E219: 4.82 | F219: 964 | G219: KLRJ45-15e1-02 ww
... 28 more rows

Sheet Subtiekėjai ir priedai
A2: Ūkio subjektai (įskaitant kvazisubtiekėjus - fiziniai asmenys, kuriuos ketinama įdarbinti pirkimo laimėjimo atveju), kurių pajėgumais tiekėjas remiasi, kad atitiktų keliamus kvalifikacijos reikalavimus:
A5: Pavadinimas* | C5: Kodas, adresas | F5: Perduodami įsipareigojimai | I5: Perduodamų įsipareigojimų dalis nuo visos pirkimo sutarties (Eur arba %) | K5: Kval. Reikalavimo Nr.
A17: Subtiekėjams / subteikėjams / subrangovams numatomos perduoti veiklos (privaloma nurodyti) ir šių ūkio subjektų pavadinimai (jei žinomi):
A19: Pavadinimas | C19: Kodas, adresas | F19: Perduodama veikla* | I19: Perduodamos veiklos dalis nuo visos pirkimo sutarties (Eur arba %)
A33: Kartu su pasiūlymu pateikiami šie dokumentai:
A35: Nr. | B35: Dokumento pavadinimas | H35: Dokumentas yra konfidencialus? Taip/Ne
A36: 1 | B36: Jungtinės veiklos kopija (jei taikoma)
A37: 2 | B37: Europos bendrasis viešųjų pirkimų dokumentas
A38: 3 | B38: Subtiekimo sutartis, ketinimų protokolas, preliminarios sutartys ar kiti dokumentai, patvirtinantys, kad laimėjus pirkimą tiekėjui bus prieinami kitų ūkio subjektų ištekliai (jei pasitelkiami kvalifikacijos atitikimui)
A48: Pasiūlyme nurodyta Prekės kaina, išskyrus jos sudedamąsias dalis, subtiekėjai, taip pat kita informacija, kuri teisės aktų nustatyta tvarka turi būti skelbiama arba kitokiu būdu viešai prieinama visuomenei, nėra laikoma konfidencialia informacija. Konfidencialią informaciją sudaro, visų pirma, komercinė (gamybinė) paslaptis ir konfidencialieji pasiūlymų aspektai. Informacija, kurią viešai skelbti įpareigoja Lietuvos Respublikos įstatymai, negali būti tiekėjo nurodoma kaip konfidenciali, todėl, tiekėjui nurodžius tokią informaciją kaip konfidencialią, perkančioji organizacija turi teisę ją skelbti. Jei tiekėjas nenurodo konfidencialios informacijos, laikoma, kad konfidencialios informacijos tiekėjo pasiūlyme nėra. Vadovaujantis Informacijos viešinimo Centrinėje viešųjų pirkimų informacinėje sistemoje tvarkos aprašu, patvirtintu Viešųjų pirkimų tarnybos direktoriaus 2017 m. birželio 19 d. įsakymu Nr. 1S-91 „Dėl Informacijos viešinimo Centrinėje viešųjų pirkimų informacinėje sistemoje tvarkos aprašo patvirtinimo“, perkančioji organizacija laimėjusio dalyvio pasiūlymą, išskyrus informaciją, kurią tiekėjas nurodė kaip konfidencialią, paskelbs CVP IS.
A51: Tiekėjo arba jo įgalioto asmens pareigų pavadinimas:
A53: Pasirašančio asmens vardas ir pavardė:
A100: 6740 2022-02-18 09:19:04
